[Event "Late-Titled-Tuesday-Blitz-April-02-2024"]
[Site "Chess.com"]
[Date "2024.04.02"]
[Round "1"]
[White "Akhayan"]
[Black "ameetghasi100"]
[Result "0-1"]
[WhiteElo "2449"]
[BlackElo "2801"]
[TimeControl "180+1"]
[EndTime "14:03:14 PDT"]
[Termination "ameetghasi100 won by resignation"]

1. e4 {[%clk 0:03:00.9]} 1... g6 {[%clk 0:02:59.1]} 2. d4 {[%clk 0:02:58.6]}
2... d6 {[%clk 0:03:00]} 3. Nc3 {[%clk 0:02:59]} 3... a6 {[%clk 0:02:59.4]} 4.
Be3 {[%clk 0:02:58.9]} 4... Bg7 {[%clk 0:02:51.8]} 5. f3 {[%clk 0:02:57.4]} 5...
b5 {[%clk 0:02:51.8]} 6. Qd2 {[%clk 0:02:57.7]} 6... Nd7 {[%clk 0:02:52.3]} 7.
h4 {[%clk 0:02:55.9]} 7... h5 {[%clk 0:02:52]} 8. Nh3 {[%clk 0:02:55.4]} 8... e6
{[%clk 0:02:51.1]} 9. Ng5 {[%clk 0:02:55.4]} 9... Bb7 {[%clk 0:02:51.3]} 10. Bd3
{[%clk 0:02:48.3]} 10... c5 {[%clk 0:02:49.5]} 11. dxc5 {[%clk 0:02:41.9]} 11...
dxc5 {[%clk 0:02:50.4]} 12. O-O {[%clk 0:02:32.5]} 12... Qc7 {[%clk 0:02:48.2]}
13. e5 {[%clk 0:02:27]} 13... Nxe5 {[%clk 0:02:42.5]} 14. Be4 {[%clk 0:02:26.5]}
14... Nc4 {[%clk 0:02:34.7]} 15. Qd3 {[%clk 0:01:49.9]} 15... Rd8 {[%clk
0:02:23.2]} 16. Nxe6 {[%clk 0:01:38.6]} 16... fxe6 {[%clk 0:02:16.9]} 17. Bxg6+
{[%clk 0:01:36.7]} 17... Kf8 {[%clk 0:02:16]} 18. Bxc5+ {[%clk 0:01:30.9]} 18...
Qxc5+ {[%clk 0:02:15.6]} 0-1

[Event "Late-Titled-Tuesday-Blitz-April-02-2024"]
[Site "Chess.com"]
[Date "2024.04.02"]
[Round "1"]
[White "MaestroCheck"]
[Black "PNEPaul"]
[Result "1-0"]
[WhiteElo "2554"]
[BlackElo "1967"]
[TimeControl "180+1"]
[EndTime "14:03:19 PDT"]
[Termination "MaestroCheck won by resignation"]

1. e4 {[%clk 0:03:00.6]} 1... e5 {[%clk 0:02:59.8]} 2. Nf3 {[%clk 0:02:56.6]}
2... Nc6 {[%clk 0:02:59.8]} 3. Bc4 {[%clk 0:02:54.1]} 3... Be7 {[%clk
0:02:59.1]} 4. d4 {[%clk 0:02:49.3]} 4... exd4 {[%clk 0:02:58.5]} 5. Nxd4 {[%clk
0:02:47.5]} 5... d6 {[%clk 0:02:58.6]} 6. O-O {[%clk 0:02:34.8]} 6... Nf6 {[%clk
0:02:57.6]} 7. Nc3 {[%clk 0:02:33.7]} 7... O-O {[%clk 0:02:57.4]} 8. h3 {[%clk
0:02:22.9]} 8... Nxe4 {[%clk 0:02:49.4]} 9. Nxc6 {[%clk 0:02:11.4]} 9... bxc6
{[%clk 0:02:48.9]} 10. Nxe4 {[%clk 0:02:10.9]} 10... d5 {[%clk 0:02:49.2]} 11.
Bd3 {[%clk 0:02:07.8]} 11... dxe4 {[%clk 0:02:48.7]} 12. Bxe4 {[%clk 0:02:08.7]}
12... Ba6 {[%clk 0:02:48.6]} 13. Re1 {[%clk 0:01:57.5]} 13... Qxd1 {[%clk
0:02:47.1]} 14. Rxd1 {[%clk 0:01:57.8]} 14... Rad8 {[%clk 0:02:45.2]} 15. Bf4
{[%clk 0:01:41.2]} 15... Be2 {[%clk 0:02:04.1]} 16. Re1 {[%clk 0:01:35.7]} 16...
Bd3 {[%clk 0:01:53.6]} 17. Bxd3 {[%clk 0:01:34.6]} 1-0

[Event "Late-Titled-Tuesday-Blitz-April-02-2024"]
[Site "Chess.com"]
[Date "2024.04.02"]
[Round "1"]
[White "Balla_Tamas"]
[Black "sergoy"]
[Result "0-1"]
[WhiteElo "2489"]
[BlackElo "2895"]
[TimeControl "180+1"]
[EndTime "14:03:29 PDT"]
[Termination "sergoy won by resignation"]

1. Nf3 {[%clk 0:03:00.9]} 1... d5 {[%clk 0:02:58.7]} 2. b3 {[%clk 0:03:00.8]}
2... Bg4 {[%clk 0:02:57.7]} 3. e3 {[%clk 0:02:57.9]} 3... e5 {[%clk 0:02:54.9]}
4. h3 {[%clk 0:02:55.3]} 4... Bxf3 {[%clk 0:02:51.4]} 5. Qxf3 {[%clk 0:02:55.2]}
5... c6 {[%clk 0:02:49.8]} 6. Bb2 {[%clk 0:02:55.1]} 6... Nd7 {[%clk 0:02:49.4]}
7. d3 {[%clk 0:02:54.4]} 7... Bd6 {[%clk 0:02:49.3]} 8. Nd2 {[%clk 0:02:54.1]}
8... Ne7 {[%clk 0:02:48.9]} 9. g3 {[%clk 0:02:44.3]} 9... O-O {[%clk 0:02:48.7]}
10. Bg2 {[%clk 0:02:44.8]} 10... f5 {[%clk 0:02:49.1]} 11. Qe2 {[%clk
0:02:36.2]} 11... Qc7 {[%clk 0:02:42]} 12. f4 {[%clk 0:02:32]} 12... Rae8 {[%clk
0:02:36.8]} 13. O-O-O {[%clk 0:02:27.8]} 13... a5 {[%clk 0:02:34.8]} 14. Rdf1
{[%clk 0:02:13.1]} 14... a4 {[%clk 0:02:33.7]} 15. fxe5 {[%clk 0:02:01.6]} 15...
Bxe5 {[%clk 0:02:34.6]} 16. d4 {[%clk 0:01:59.1]} 16... Bd6 {[%clk 0:02:34.7]}
17. g4 {[%clk 0:01:58.9]} 17... axb3 {[%clk 0:02:32.2]} 18. axb3 {[%clk
0:01:56.5]} 18... Qa5 {[%clk 0:02:32.2]} 19. gxf5 {[%clk 0:01:43.4]} 19... Nxf5
{[%clk 0:02:31.8]} 20. e4 {[%clk 0:01:43.5]} 20... Ng3 {[%clk 0:02:30]} 21. Qg4
{[%clk 0:01:41.8]} 21... Nxf1 {[%clk 0:02:27.5]} 22. Bxf1 {[%clk 0:01:30.5]}
22... Nf6 {[%clk 0:02:26.4]} 23. Qg5 {[%clk 0:01:20.4]} 23... Nxe4 {[%clk
0:02:23.3]} 0-1

[Event "Late-Titled-Tuesday-Blitz-April-02-2024"]
[Site "Chess.com"]
[Date "2024.04.02"]
[Round "1"]
[White "rcmz"]
[Black "AjedrezenMadrid"]
[Result "0-1"]
[WhiteElo "2211"]
[BlackElo "2579"]
[TimeControl "180+1"]
[EndTime "14:04:03 PDT"]
[Termination "AjedrezenMadrid won by checkmate"]

1. b4 {[%clk 0:03:00.9]} 1... e6 {[%clk 0:02:58.9]} 2. Bb2 {[%clk 0:03:00]} 2...
b6 {[%clk 0:02:59.2]} 3. e3 {[%clk 0:02:58.5]} 3... Bb7 {[%clk 0:02:59.5]} 4. f4
{[%clk 0:02:58.2]} 4... Nf6 {[%clk 0:02:54]} 5. a3 {[%clk 0:02:56.6]} 5... c5
{[%clk 0:02:52.5]} 6. b5 {[%clk 0:02:56]} 6... d5 {[%clk 0:02:51.5]} 7. Nf3
{[%clk 0:02:55.8]} 7... Nbd7 {[%clk 0:02:51.3]} 8. c4 {[%clk 0:02:55]} 8... Bd6
{[%clk 0:02:50.6]} 9. Be2 {[%clk 0:02:54.3]} 9... d4 {[%clk 0:02:50.5]} 10. O-O
{[%clk 0:02:51.5]} 10... Qc7 {[%clk 0:02:50]} 11. g3 {[%clk 0:02:47.5]} 11...
O-O-O {[%clk 0:02:47.1]} 12. exd4 {[%clk 0:02:45.6]} 12... cxd4 {[%clk
0:02:46.8]} 13. Bxd4 {[%clk 0:02:43]} 13... Bc5 {[%clk 0:02:42.8]} 14. Bxc5
{[%clk 0:02:33.8]} 14... Nxc5 {[%clk 0:02:43.7]} 15. d4 {[%clk 0:02:32.9]} 15...
Bxf3 {[%clk 0:02:26.9]} 16. Rxf3 {[%clk 0:02:28.8]} 16... Rd7 {[%clk 0:02:24]}
17. Qc2 {[%clk 0:01:50.5]} 17... Rxd4 {[%clk 0:02:23.4]} 18. Nc3 {[%clk
0:01:49.7]} 18... h5 {[%clk 0:02:19.1]} 19. Na4 {[%clk 0:01:47.2]} 19... h4
{[%clk 0:02:17.7]} 20. Nxc5 {[%clk 0:01:45]} 20... Qxc5 {[%clk 0:02:18.6]} 21.
Kg2 {[%clk 0:01:40.5]} 21... hxg3 {[%clk 0:02:13]} 22. hxg3 {[%clk 0:01:39.5]}
22... Qh5 {[%clk 0:02:08.7]} 23. Rg1 {[%clk 0:01:35.7]} 23... Ng4 {[%clk
0:01:53.9]} 24. c5 {[%clk 0:01:17.2]} 24... Qh3# {[%clk 0:01:50.5]} 0-1

[Event "Late-Titled-Tuesday-Blitz-April-02-2024"]
[Site "Chess.com"]
[Date "2024.04.02"]
[Round "1"]
[White "Crazy_girl99"]
[Black "APOKALIPSA13"]
[Result "1-0"]
[WhiteElo "2619"]
[BlackElo "2291"]
[TimeControl "180+1"]
[EndTime "14:04:07 PDT"]
[Termination "Crazy_girl99 won by resignation"]

1. Nf3 {[%clk 0:02:50.7]} 1... c5 {[%clk 0:02:58.1]} 2. g3 {[%clk 0:02:47.7]}
2... Nc6 {[%clk 0:02:57.7]} 3. Bg2 {[%clk 0:02:48.1]} 3... e5 {[%clk 0:02:57.7]}
4. d3 {[%clk 0:02:46.8]} 4... d6 {[%clk 0:02:54.1]} 5. O-O {[%clk 0:02:46.8]}
5... h5 {[%clk 0:02:53.1]} 6. c4 {[%clk 0:02:44.8]} 6... Be7 {[%clk 0:02:52]} 7.
Nc3 {[%clk 0:02:43.9]} 7... h4 {[%clk 0:02:51.2]} 8. Nd5 {[%clk 0:02:44.1]} 8...
h3 {[%clk 0:02:49.6]} 9. Bh1 {[%clk 0:02:43.8]} 9... Be6 {[%clk 0:02:47.7]} 10.
Be3 {[%clk 0:02:34.9]} 10... Bxd5 {[%clk 0:02:43.8]} 11. cxd5 {[%clk 0:02:35.8]}
11... Nd4 {[%clk 0:02:43.2]} 12. Bxd4 {[%clk 0:02:31.1]} 12... cxd4 {[%clk
0:02:43.7]} 13. e3 {[%clk 0:02:30.6]} 13... dxe3 {[%clk 0:02:39.2]} 14. fxe3
{[%clk 0:02:30.8]} 14... Nf6 {[%clk 0:02:31.9]} 15. Ng5 {[%clk 0:02:30.5]} 15...
Qd7 {[%clk 0:02:26.2]} 16. Rc1 {[%clk 0:02:27.6]} 16... Bd8 {[%clk 0:02:24]} 17.
Be4 {[%clk 0:02:15.9]} 17... Bb6 {[%clk 0:02:23.2]} 18. Qf3 {[%clk 0:02:14]}
18... Rc8 {[%clk 0:02:20]} 19. Bf5 {[%clk 0:02:12.7]} 19... Rxc1 {[%clk
0:02:13.2]} 20. Bxd7+ {[%clk 0:02:12.3]} 20... Kxd7 {[%clk 0:02:09]} 21. Rxc1
{[%clk 0:02:12]} 21... Ke7 {[%clk 0:02:09.1]} 22. d4 {[%clk 0:02:08.6]} 22...
Rh5 {[%clk 0:02:08]} 23. Ne4 {[%clk 0:02:05]} 23... Rh6 {[%clk 0:02:02.2]} 24.
dxe5 {[%clk 0:02:04.4]} 24... Nxd5 {[%clk 0:01:57.1]} 25. exd6+ {[%clk
0:02:03.9]} 25... Ke6 {[%clk 0:01:55]} 26. Ng5+ {[%clk 0:02:00.6]} 26... Kxd6
{[%clk 0:01:51.7]} 27. Nxf7+ {[%clk 0:01:59.2]} 27... Ke6 {[%clk 0:01:51.6]} 28.
Nxh6 {[%clk 0:01:56.5]} 28... Bxe3+ {[%clk 0:01:50.9]} 29. Kf1 {[%clk
0:01:56.8]} 29... Bxc1 {[%clk 0:01:49.4]} 30. Qe4+ {[%clk 0:01:56.8]} 30... Kd6
{[%clk 0:01:42.1]} 31. Nf5+ {[%clk 0:01:56.2]} 31... Kc5 {[%clk 0:01:39.4]} 32.
Qd4+ {[%clk 0:01:53.5]} 32... Kc6 {[%clk 0:01:32]} 33. Qc4+ {[%clk 0:01:53.7]}
1-0

[Event "Late-Titled-Tuesday-Blitz-April-02-2024"]
[Site "Chess.com"]
[Date "2024.04.02"]
[Round "1"]
[White "katharinareinecke"]
[Black "WilsonPalencia21"]
[Result "0-1"]
[WhiteElo "1991"]
[BlackElo "2556"]
[TimeControl "180+1"]
[EndTime "14:04:13 PDT"]
[Termination "WilsonPalencia21 won by resignation"]

1. d4 {[%clk 0:02:57.3]} 1... Nf6 {[%clk 0:02:50.7]} 2. Nf3 {[%clk 0:02:56.5]}
2... c5 {[%clk 0:02:49.4]} 3. g3 {[%clk 0:02:53.2]} 3... g6 {[%clk 0:02:48.8]}
4. Bg2 {[%clk 0:02:52.5]} 4... Bg7 {[%clk 0:02:47.9]} 5. O-O {[%clk 0:02:51.7]}
5... O-O {[%clk 0:02:48]} 6. c4 {[%clk 0:02:48.6]} 6... d6 {[%clk 0:02:47.6]} 7.
b3 {[%clk 0:02:38.7]} 7... d5 {[%clk 0:02:44.9]} 8. cxd5 {[%clk 0:02:37.6]} 8...
cxd4 {[%clk 0:02:43.5]} 9. Bb2 {[%clk 0:02:27.2]} 9... Nxd5 {[%clk 0:02:35]} 10.
Nxd4 {[%clk 0:02:25.3]} 10... Nb4 {[%clk 0:02:32.9]} 11. a3 {[%clk 0:02:12.8]}
11... Bxd4 {[%clk 0:02:10.7]} 12. Qxd4 {[%clk 0:01:31]} 12... Qxd4 {[%clk
0:02:09.1]} 13. Bxd4 {[%clk 0:01:30.3]} 13... Nc2 {[%clk 0:02:09.6]} 14. Bb2
{[%clk 0:01:26.9]} 14... Nxa1 {[%clk 0:02:09.4]} 15. Bxa1 {[%clk 0:01:27.8]}
15... Nc6 {[%clk 0:02:09.3]} 16. e3 {[%clk 0:01:26.3]} 16... Be6 {[%clk
0:02:08.3]} 17. b4 {[%clk 0:01:24.9]} 17... Rfd8 {[%clk 0:02:08]} 18. Nc3 {[%clk
0:01:21.8]} 18... Rd2 {[%clk 0:02:02.8]} 19. Nb5 {[%clk 0:01:18.6]} 19... Bc4
{[%clk 0:02:01.6]} 20. Nd4 {[%clk 0:01:12.8]} 20... Nxd4 {[%clk 0:02:00.5]} 21.
Bxd4 {[%clk 0:01:13.7]} 21... Bxf1 {[%clk 0:02:00.1]} 22. Bxf1 {[%clk
0:01:06.7]} 22... Rd1 {[%clk 0:01:59.9]} 23. f4 {[%clk 0:01:03.4]} 23... Rc8
{[%clk 0:01:51.9]} 24. Kf2 {[%clk 0:01:02.9]} 24... Rc2+ {[%clk 0:01:51.3]} 0-1

[Event "Late-Titled-Tuesday-Blitz-April-02-2024"]
[Site "Chess.com"]
[Date "2024.04.02"]
[Round "1"]
[White "Kiborg95"]
[Black "Slovineanu"]
[Result "1-0"]
[WhiteElo "2847"]
[BlackElo "2464"]
[TimeControl "180+1"]
[EndTime "14:04:14 PDT"]
[Termination "Kiborg95 won by resignation"]

1. e4 {[%clk 0:02:57.1]} 1... e5 {[%clk 0:02:59.5]} 2. Nf3 {[%clk 0:02:57.3]}
2... Nc6 {[%clk 0:02:59.8]} 3. Bc4 {[%clk 0:02:57.8]} 3... Nf6 {[%clk
0:02:59.5]} 4. d3 {[%clk 0:02:58.2]} 4... Be7 {[%clk 0:02:59.4]} 5. O-O {[%clk
0:02:55.7]} 5... O-O {[%clk 0:02:59.2]} 6. a4 {[%clk 0:02:54.4]} 6... d6 {[%clk
0:02:59.2]} 7. a5 {[%clk 0:02:54.5]} 7... a6 {[%clk 0:02:49]} 8. c3 {[%clk
0:02:54.4]} 8... h6 {[%clk 0:02:43.2]} 9. Re1 {[%clk 0:02:51.9]} 9... Re8 {[%clk
0:02:42.6]} 10. Nbd2 {[%clk 0:02:52.2]} 10... Bf8 {[%clk 0:02:31.7]} 11. b4
{[%clk 0:02:52.6]} 11... d5 {[%clk 0:02:29.9]} 12. exd5 {[%clk 0:02:50.6]} 12...
Nxd5 {[%clk 0:02:29.8]} 13. Qb3 {[%clk 0:02:51.3]} 13... Be6 {[%clk 0:02:17.5]}
14. Nxe5 {[%clk 0:02:50.8]} 14... Nxe5 {[%clk 0:02:17.7]} 15. Rxe5 {[%clk
0:02:51.7]} 15... Bd6 {[%clk 0:02:15.9]} 16. Rxd5 {[%clk 0:02:32.2]} 16... Bxd5
{[%clk 0:02:15.7]} 17. Bxd5 {[%clk 0:02:33.1]} 17... Re1+ {[%clk 0:02:15.7]} 18.
Nf1 {[%clk 0:02:33.9]} 18... Bxh2+ {[%clk 0:02:00.7]} 19. Kxh2 {[%clk
0:02:32.2]} 19... Rxf1 {[%clk 0:02:01.2]} 20. Qc4 {[%clk 0:02:06.1]} 20... c6
{[%clk 0:01:05.7]} 21. Bxf7+ {[%clk 0:02:01.8]} 21... Kh8 {[%clk 0:01:05.1]} 22.
Bg5 {[%clk 0:02:02.5]} 1-0

[Event "Late-Titled-Tuesday-Blitz-April-02-2024"]
[Site "Chess.com"]
[Date "2024.04.02"]
[Round "1"]
[White "Tugrik1969"]
[Black "Missigirl"]
[Result "1-0"]
[WhiteElo "2551"]
[BlackElo "1891"]
[TimeControl "180+1"]
[EndTime "14:04:14 PDT"]
[Termination "Tugrik1969 won by resignation"]

1. Nf3 {[%clk 0:02:55.2]} 1... d5 {[%clk 0:02:58.9]} 2. d4 {[%clk 0:02:54.5]}
2... g6 {[%clk 0:02:58.3]} 3. c4 {[%clk 0:02:54.2]} 3... c6 {[%clk 0:02:54.9]}
4. Nc3 {[%clk 0:02:51.5]} 4... Bg7 {[%clk 0:02:54.4]} 5. cxd5 {[%clk 0:02:46.9]}
5... cxd5 {[%clk 0:02:53.8]} 6. Bf4 {[%clk 0:02:47.5]} 6... a6 {[%clk
0:02:51.4]} 7. e3 {[%clk 0:02:47.3]} 7... Nc6 {[%clk 0:02:50.3]} 8. h3 {[%clk
0:02:47.3]} 8... Nf6 {[%clk 0:02:48.8]} 9. Bd3 {[%clk 0:02:45.4]} 9... O-O
{[%clk 0:02:47.5]} 10. Rc1 {[%clk 0:02:43.1]} 10... Bd7 {[%clk 0:02:22.5]} 11.
O-O {[%clk 0:02:41.4]} 11... Rc8 {[%clk 0:02:21.6]} 12. Ne5 {[%clk 0:02:29.1]}
12... e6 {[%clk 0:02:11.6]} 13. Qb3 {[%clk 0:01:56.3]} 13... b5 {[%clk 0:01:48]}
14. a4 {[%clk 0:01:37.4]} 14... Na5 {[%clk 0:01:46]} 15. Qb4 {[%clk 0:01:32]}
15... bxa4 {[%clk 0:01:26.4]} 16. Nxd7 {[%clk 0:01:16.6]} 16... Qxd7 {[%clk
0:01:22.1]} 17. Qxa5 {[%clk 0:01:15.2]} 1-0

[Event "Late-Titled-Tuesday-Blitz-April-02-2024"]
[Site "Chess.com"]
[Date "2024.04.02"]
[Round "1"]
[White "DrKerfuffle"]
[Black "sorch29"]
[Result "1-0"]
[WhiteElo "2778"]
[BlackElo "2433"]
[TimeControl "180+1"]
[EndTime "14:04:24 PDT"]
[Termination "DrKerfuffle won by resignation"]

1. e4 {[%clk 0:02:40.1]} 1... c5 {[%clk 0:02:56.7]} 2. Nf3 {[%clk 0:02:39.9]}
2... d6 {[%clk 0:02:55.5]} 3. Bc4 {[%clk 0:02:39.8]} 3... Nf6 {[%clk 0:02:53.4]}
4. e5 {[%clk 0:02:38.4]} 4... dxe5 {[%clk 0:02:51.8]} 5. Nxe5 {[%clk 0:02:39.3]}
5... e6 {[%clk 0:02:52.4]} 6. Qe2 {[%clk 0:02:38.8]} 6... Be7 {[%clk 0:02:49.7]}
7. O-O {[%clk 0:02:36.9]} 7... O-O {[%clk 0:02:49.9]} 8. Re1 {[%clk 0:02:37.1]}
8... Nbd7 {[%clk 0:02:32.9]} 9. Nxf7 {[%clk 0:02:36.3]} 9... Rxf7 {[%clk
0:02:30]} 10. Qxe6 {[%clk 0:02:35.5]} 10... Qf8 {[%clk 0:02:22.9]} 11. Qxe7
{[%clk 0:02:28.8]} 11... Nb6 {[%clk 0:01:51.1]} 12. Bxf7+ {[%clk 0:02:27.4]}
12... Qxf7 {[%clk 0:01:46.7]} 13. Qxf7+ {[%clk 0:02:28.3]} 13... Kxf7 {[%clk
0:01:47.4]} 14. Nc3 {[%clk 0:02:27.2]} 14... c4 {[%clk 0:01:45.6]} 15. d3 {[%clk
0:02:26]} 15... cxd3 {[%clk 0:01:43.5]} 16. cxd3 {[%clk 0:02:26.9]} 16... Bf5
{[%clk 0:01:44.2]} 17. Ne4 {[%clk 0:02:25.8]} 17... Rd8 {[%clk 0:01:43.8]} 18.
Bg5 {[%clk 0:02:19.6]} 18... Rxd3 {[%clk 0:01:42.3]} 19. Nc5 {[%clk 0:02:10.8]}
19... Rd5 {[%clk 0:01:34.5]} 20. Bxf6 {[%clk 0:02:05.4]} 20... gxf6 {[%clk
0:01:35.4]} 21. Nb3 {[%clk 0:02:01.2]} 21... Nc4 {[%clk 0:01:29.6]} 22. Rad1
{[%clk 0:01:56.5]} 22... Rxd1 {[%clk 0:01:28.5]} 23. Rxd1 {[%clk 0:01:57.4]}
23... Nxb2 {[%clk 0:01:29.2]} 24. Rd4 {[%clk 0:01:51.6]} 24... Be6 {[%clk
0:01:21.9]} 25. Nc5 {[%clk 0:01:48.5]} 25... b6 {[%clk 0:01:19.7]} 26. Nxe6
{[%clk 0:01:46.3]} 26... Kxe6 {[%clk 0:01:20.6]} 27. Rh4 {[%clk 0:01:46.9]}
27... a5 {[%clk 0:01:18.4]} 28. Rxh7 {[%clk 0:01:46.7]} 28... Kd5 {[%clk
0:01:16.3]} 29. h4 {[%clk 0:01:45.8]} 29... Nc4 {[%clk 0:01:15.4]} 30. h5 {[%clk
0:01:44.9]} 30... Ne5 {[%clk 0:01:16.3]} 1-0

[Event "Late-Titled-Tuesday-Blitz-April-02-2024"]
[Site "Chess.com"]
[Date "2024.04.02"]
[Round "1"]
[White "Zavgorodniy_Sergiy"]
[Black "The_Straightforward_Rook"]
[Result "1/2-1/2"]
[WhiteElo "2645"]
[BlackElo "2371"]
[TimeControl "180+1"]
[EndTime "14:04:27 PDT"]
[Termination "Game drawn by repetition"]

1. d4 {[%clk 0:03:00.9]} 1... d5 {[%clk 0:01:38.8]} 2. c4 {[%clk 0:03:00.6]}
2... c6 {[%clk 0:01:38.9]} 3. e3 {[%clk 0:03:00.8]} 3... Nf6 {[%clk 0:01:38.6]}
4. Bd3 {[%clk 0:03:01]} 4... e6 {[%clk 0:01:37.7]} 5. Nd2 {[%clk 0:03:00.7]}
5... Bd6 {[%clk 0:01:35.6]} 6. Ngf3 {[%clk 0:03:01]} 6... Nbd7 {[%clk
0:01:35.7]} 7. O-O {[%clk 0:03:01.2]} 7... O-O {[%clk 0:01:35]} 8. e4 {[%clk
0:03:01.8]} 8... dxe4 {[%clk 0:01:33.4]} 9. Nxe4 {[%clk 0:03:02.7]} 9... Nxe4
{[%clk 0:01:33.9]} 10. Bxe4 {[%clk 0:03:03.6]} 10... Nf6 {[%clk 0:01:34]} 11.
Bc2 {[%clk 0:03:03.7]} 11... h6 {[%clk 0:01:28.9]} 12. b3 {[%clk 0:03:03.6]}
12... b6 {[%clk 0:01:25.9]} 13. Bb2 {[%clk 0:03:03.8]} 13... Bb7 {[%clk
0:01:26.4]} 14. Qd3 {[%clk 0:03:03.7]} 14... g6 {[%clk 0:01:21.7]} 15. Rfe1
{[%clk 0:03:00.6]} 15... Be7 {[%clk 0:01:20.1]} 16. Ne5 {[%clk 0:03:00]} 16...
Qe8 {[%clk 0:01:12.8]} 17. Qg3 {[%clk 0:02:50.8]} 17... Kh7 {[%clk 0:01:07.7]}
18. Nxg6 {[%clk 0:02:44.4]} 18... fxg6 {[%clk 0:01:07.4]} 19. Rxe6 {[%clk
0:02:44.5]} 19... Qf7 {[%clk 0:01:07.8]} 20. Rxe7 {[%clk 0:02:38.6]} 20... Qxe7
{[%clk 0:01:06.4]} 21. Qxg6+ {[%clk 0:02:38.3]} 21... Kh8 {[%clk 0:01:07.1]} 22.
Qxh6+ {[%clk 0:02:37.8]} 22... Kg8 {[%clk 0:01:06.9]} 23. d5 {[%clk 0:02:33.5]}
23... Qg7 {[%clk 0:01:06.6]} 24. Qh4 {[%clk 0:02:30.7]} 24... cxd5 {[%clk
0:01:06.1]} 25. Re1 {[%clk 0:02:26.1]} 25... dxc4 {[%clk 0:01:04.9]} 26. Qxc4+
{[%clk 0:02:24.4]} 26... Bd5 {[%clk 0:01:04.1]} 27. Qf1 {[%clk 0:02:16.4]} 27...
Rae8 {[%clk 0:01:01]} 28. Rd1 {[%clk 0:02:16.2]} 28... Bb7 {[%clk 0:00:55]} 29.
Qc4+ {[%clk 0:02:13.4]} 29... Kh8 {[%clk 0:00:49.6]} 30. Qh4+ {[%clk 0:02:11.8]}
30... Kg8 {[%clk 0:00:49.4]} 31. Qc4+ {[%clk 0:02:11.1]} 31... Kh8 {[%clk
0:00:50.1]} 32. Qh4+ {[%clk 0:02:08.4]} 32... Kg8 {[%clk 0:00:50.8]} 33. Qc4+
{[%clk 0:02:06.2]} 1/2-1/2

[Event "Late-Titled-Tuesday-Blitz-April-02-2024"]
[Site "Chess.com"]
[Date "2024.04.02"]
[Round "1"]
[White "Beca95"]
[Black "RealPerangel"]
[Result "0-1"]
[WhiteElo "2941"]
[BlackElo "2524"]
[TimeControl "180+1"]
[EndTime "14:04:35 PDT"]
[Termination "RealPerangel won by resignation"]

1. d4 {[%clk 0:02:59.2]} 1... c5 {[%clk 0:02:59.8]} 2. d5 {[%clk 0:02:59.3]}
2... Nf6 {[%clk 0:03:00.5]} 3. Nc3 {[%clk 0:02:59.3]} 3... Qa5 {[%clk
0:03:00.2]} 4. Bd2 {[%clk 0:02:52.4]} 4... b5 {[%clk 0:03:00]} 5. e4 {[%clk
0:02:50.5]} 5... b4 {[%clk 0:03:00]} 6. e5 {[%clk 0:02:50.8]} 6... bxc3 {[%clk
0:03:00.4]} 7. Bxc3 {[%clk 0:02:50.9]} 7... Qa4 {[%clk 0:03:00.9]} 8. exf6
{[%clk 0:02:50.4]} 8... gxf6 {[%clk 0:03:01.7]} 9. Nf3 {[%clk 0:02:47.6]} 9...
Qe4+ {[%clk 0:03:01.3]} 10. Be2 {[%clk 0:02:47.5]} 10... Bb7 {[%clk 0:03:00.8]}
11. d6 {[%clk 0:02:34]} 11... e5 {[%clk 0:03:00.2]} 12. Qd2 {[%clk 0:02:25.5]}
12... h5 {[%clk 0:02:59.2]} 13. Kf1 {[%clk 0:01:57.8]} 13... Rg8 {[%clk
0:02:56.1]} 14. Rg1 {[%clk 0:01:56]} 14... Nc6 {[%clk 0:02:35.2]} 15. Re1 {[%clk
0:01:54.5]} 15... O-O-O {[%clk 0:02:09.1]} 16. Bb5 {[%clk 0:01:53.9]} 16... Qf5
{[%clk 0:02:02.1]} 17. Nh4 {[%clk 0:01:50.9]} 17... Qg4 {[%clk 0:01:56.1]} 18.
g3 {[%clk 0:01:46.3]} 18... Qh3+ {[%clk 0:01:47.5]} 19. Ke2 {[%clk 0:01:46.2]}
19... Qg4+ {[%clk 0:01:47.6]} 20. f3 {[%clk 0:01:45.8]} 20... Qe6 {[%clk
0:01:47.1]} 21. Kf2 {[%clk 0:01:42.3]} 21... Bxd6 {[%clk 0:01:42.1]} 22. Bc4
{[%clk 0:01:41.9]} 22... Qxc4 {[%clk 0:01:39.2]} 23. Qxd6 {[%clk 0:01:41.9]}
23... Qe6 {[%clk 0:01:33.2]} 24. Qxc5 {[%clk 0:01:41.2]} 24... d5 {[%clk
0:01:32.9]} 25. Ba5 {[%clk 0:01:37.9]} 25... Rd7 {[%clk 0:01:31.2]} 26. Re3
{[%clk 0:01:34.4]} 26... d4 {[%clk 0:01:30.5]} 27. Rb3 {[%clk 0:01:34.4]} 27...
Rd5 {[%clk 0:01:30]} 0-1

[Event "Late-Titled-Tuesday-Blitz-April-02-2024"]
[Site "Chess.com"]
[Date "2024.04.02"]
[Round "1"]
[White "ValeriyGrinev"]
[Black "rikchessmx"]
[Result "1-0"]
[WhiteElo "2585"]
[BlackElo "2232"]
[TimeControl "180+1"]
[EndTime "14:04:35 PDT"]
[Termination "ValeriyGrinev won by resignation"]

1. e4 {[%clk 0:02:59.5]} 1... e5 {[%clk 0:03:00]} 2. Nf3 {[%clk 0:02:59.3]} 2...
Nc6 {[%clk 0:03:00.9]} 3. d4 {[%clk 0:02:59.8]} 3... exd4 {[%clk 0:03:00]} 4.
Nxd4 {[%clk 0:03:00.7]} 4... Nf6 {[%clk 0:02:59.1]} 5. Nc3 {[%clk 0:03:00.7]}
5... Bb4 {[%clk 0:02:58.2]} 6. Nxc6 {[%clk 0:02:59.5]} 6... bxc6 {[%clk
0:02:58.1]} 7. Bd3 {[%clk 0:03:00]} 7... d5 {[%clk 0:02:57.6]} 8. exd5 {[%clk
0:02:59.8]} 8... cxd5 {[%clk 0:02:57.5]} 9. O-O {[%clk 0:03:00.1]} 9... c6
{[%clk 0:02:57.7]} 10. Bg5 {[%clk 0:02:59.8]} 10... O-O {[%clk 0:02:55.5]} 11.
Qf3 {[%clk 0:02:57.8]} 11... Be7 {[%clk 0:02:55.1]} 12. h3 {[%clk 0:02:55.7]}
12... Be6 {[%clk 0:02:55]} 13. Rfe1 {[%clk 0:02:50.3]} 13... Rb8 {[%clk
0:02:54.3]} 14. Rab1 {[%clk 0:02:46.8]} 14... Re8 {[%clk 0:02:52]} 15. Ne2
{[%clk 0:02:44.2]} 15... Nd7 {[%clk 0:02:41.9]} 16. Bf4 {[%clk 0:02:41.3]} 16...
Rb4 {[%clk 0:02:38.2]} 17. a3 {[%clk 0:02:38.9]} 17... Rb6 {[%clk 0:02:37.8]}
18. Nd4 {[%clk 0:02:35.1]} 18... Bf6 {[%clk 0:02:35.2]} 19. c3 {[%clk 0:02:13]}
19... Nf8 {[%clk 0:02:29]} 20. b4 {[%clk 0:02:06.4]} 20... Bxd4 {[%clk
0:02:26.6]} 21. cxd4 {[%clk 0:02:06.1]} 21... a5 {[%clk 0:02:18.1]} 22. Bd2
{[%clk 0:02:00]} 22... axb4 {[%clk 0:02:16.4]} 23. Bxb4 {[%clk 0:02:00.3]} 23...
Ng6 {[%clk 0:02:12.3]} 24. Ra1 {[%clk 0:01:49.9]} 24... Qb8 {[%clk 0:02:06.9]}
25. Bc2 {[%clk 0:01:42.8]} 25... Bd7 {[%clk 0:01:55.6]} 26. Rxe8+ {[%clk
0:01:36.5]} 26... Bxe8 {[%clk 0:01:55.3]} 27. Bc3 {[%clk 0:01:26.5]} 27... Bd7
{[%clk 0:01:47.7]} 28. a4 {[%clk 0:01:26.3]} 28... Rb2 {[%clk 0:01:44.2]} 29.
Bxb2 {[%clk 0:01:22.3]} 29... Qxb2 {[%clk 0:01:42.8]} 30. Qd1 {[%clk 0:01:23.2]}
30... Nf4 {[%clk 0:01:38.2]} 31. Rb1 {[%clk 0:01:22.4]} 1-0